bitfinex/quotes_BTCUSD_20241013
["timestamp","ask_amount","ask_price","bid_price","bid_amount"]
[1728785431604,0.00487304,62982.0,62973.0,0.00033819]
[1728785431825,0.0806,62986.0,62968.0,0.2378819]
[1728785431826,0.26367104,62973.0,62968.0,0.2378819]
[1728785432043,0.70915604,62973.0,62968.0,0.2378819]
[1728785432267,0.70915604,62973.0,62961.0,0.2383819]
[1728785432526,0.70915604,62973.0,62961.0,0.0005]
[1728785433190,0.72315604,62973.0,62961.0,0.0005]
[1728785433405,0.50583445,62973.0,62961.0,0.0005]
[1728785433828,0.99183445,62973.0,62961.0,0.0005]
[1728785434039,1.00583445,62973.0,62961.0,0.0005]
[1728785434255,0.873669,62973.0,62961.0,0.0005]
[1728785435358,0.95900789,62973.0,62961.0,0.0005]
[1728785435817,0.97300789,62973.0,62961.0,0.0005]
[1728785436286,0.87854204,62973.0,62961.0,0.0005]
[1728785437270,0.96334391,62973.0,62961.0,0.0005]
[1728785437545,0.94934391,62973.0,62961.0,0.0005]
[1728785437993,0.96334391,62973.0,62961.0,0.0005]
[1728785438203,0.89254204,62973.0,62961.0,0.0005]
[1728785438391,0.87854204,62973.0,62961.0,0.0005]
[1728785438627,0.89254204,62973.0,62961.0,0.0005]
[1728785439045,0.90914148,62973.0,62961.0,0.0005]
[1728785440124,0.91114148,62973.0,62961.0,0.0005]
[1728785440353,0.95831626,62973.0,62961.0,0.0005]
[1728785440780,0.91114148,62973.0,62961.0,0.0005]
[1728785441201,0.90914148,62973.0,62961.0,0.0005]
[1728785442035,0.91114148,62973.0,62961.0,0.0005]
[1728785442242,0.95831626,62973.0,62961.0,0.0005]
[1728785442451,0.91114148,62973.0,62961.0,0.0005]
[1728785442658,0.95831626,62973.0,62961.0,0.0005]
[1728785443272,0.91114148,62973.0,62961.0,0.0005]
[1728785443715,0.91114148,62973.0,62961.0,1e-06]
[1728785443716,0.933125,62962.0,62961.0,1e-06]
[1728785443942,1.67282604,62962.0,62961.0,1e-06]
[1728785444175,1.32451804,62962.0,62961.0,1e-06]
[1728785444820,1.32021036,62962.0,62961.0,1e-06]
[1728785445332,1.94478636,62962.0,62961.0,1e-06]
[1728785445569,1.96895945,62962.0,62961.0,1e-06]
[1728785445792,2.46895945,62962.0,62961.0,1e-06]
[1728785446250,2.48295945,62962.0,62961.0,1e-06]
[1728785446671,2.17186845,62962.0,62961.0,1e-06]
[1728785446900,2.18586845,62962.0,62961.0,1e-06]
[1728785447120,2.20177141,62962.0,62961.0,1e-06]
[1728785448874,2.10707141,62962.0,62961.0,1e-06]
[1728785449109,2.10707141,62962.0,62959.0,0.00013344]
[1728785449110,0.16370404,62960.0,62959.0,4.4e-07]
[1728785449351,0.26370404,62960.0,62959.0,4.4e-07]
[1728785450474,0.27770404,62960.0,62959.0,4.4e-07]
[1728785451322,0.27970404,62960.0,62959.0,4.4e-07]
[1728785451541,0.83892604,62951.0,62950.0,0.00021]
[1728785451780,2.06969504,62951.0,62950.0,0.00021]
[1728785451997,1.87357704,62951.0,62950.0,0.00021]
[1728785452224,1.96447704,62951.0,62950.0,0.00021]
[1728785452458,0.26375104,62941.0,62940.0,0.0005006]
[1728785452736,0.566797,62941.0,62940.0,0.0005006]
[1728785452954,0.258878,62941.0,62940.0,0.0005006]
[1728785453179,0.758899,62933.0,62932.0,0.0882006]
[1728785453827,0.758899,62933.0,62932.0,0.1679006]
[1728785454035,1.258899,62933.0,62932.0,0.1679006]
[1728785454256,0.1,62927.0,62921.0,0.0005]
[1728785454472,0.158925,62923.0,62921.0,0.0005]
[1728785454685,0.317816,62930.0,62922.0,0.2378819]
[1728785454911,0.158922,62924.0,62922.0,0.081]
[1728785455132,0.158918,62926.0,62922.0,0.081]
[1728785455356,0.158918,62926.0,62922.0,0.061]
[1728785455615,0.2378819,62923.0,62921.0,0.0005]
[1728785455831,0.317824,62928.0,62921.0,0.0005]
[1728785455832,0.758926,62922.0,62921.0,0.0005]
[1728785456513,0.78382989,62922.0,62921.0,0.0005]
[1728785457587,0.96378989,62922.0,62921.0,0.0005]
[1728785458028,0.938886,62922.0,62921.0,0.0005]
[1728785458244,1.1767679,62922.0,62921.0,0.0005]
[1728785458454,0.952886,62922.0,62921.0,0.0005]
[1728785458882,0.938886,62922.0,62921.0,0.0005]
[1728785459119,0.952886,62922.0,62921.0,0.0005]
[1728785459329,0.952886,62922.0,62921.0,1e-06]
[1728785459540,0.954886,62922.0,62921.0,1e-06]
[1728785459768,0.952886,62922.0,62921.0,1e-06]
[1728785459979,0.952886,62922.0,62917.0,0.13873116]
[1728785459980,0.263937,62918.0,62917.0,0.13873116]
[1728785460215,0.265937,62918.0,62917.0,0.13873116]
[1728785460441,0.265937,62918.0,62917.0,0.10694316]
[1728785460442,3.4383859,62918.0,62917.0,0.10694316]
[1728785460677,3.4383859,62918.0,62917.0,1.6e-07]
[1728785460678,5.05076261,62918.0,62917.0,1.6e-07]
[1728785460885,0.34058761,62918.0,62917.0,1.6e-07]
[1728785461110,0.34058761,62918.0,62909.0,0.0018062]
[1728785461111,0.51368761,62918.0,62909.0,0.00082]
[1728785461355,0.51368761,62918.0,62899.0,0.2378819]
[1728785461356,0.763977,62902.0,62899.0,0.2378819]
[1728785461594,0.258977,62902.0,62899.0,0.2378819]
[1728785461843,0.258977,62902.0,62898.0,0.00082]
[1728785461844,0.758977,62902.0,62898.0,0.00082]
[1728785462070,1.991898,62902.0,62898.0,0.00082]
[1728785462313,1.444481,62902.0,62898.0,0.00082]
[1728785462537,0.759025,62883.0,62882.0,0.001]
[1728785462995,0.77391786,62883.0,62882.0,0.001]
[1728785463245,0.27391786,62883.0,62882.0,0.001]
[1728785463466,0.11489286,62883.0,62882.0,0.001]
[1728785463681,0.5,62883.0,62882.0,0.160028]
[1728785463903,0.5,62883.0,62882.0,0.001]
[1728785463904,0.77391786,62883.0,62882.0,0.001]
[1728785464583,1.27391786,62883.0,62882.0,0.001]
[1728785465236,1.27891786,62883.0,62882.0,0.001]
[1728785465666,2.35719686,62883.0,62882.0,0.001]
[1728785465889,1.88336886,62883.0,62882.0,0.001]
[1728785466125,1.68816386,62883.0,62882.0,0.001]
[1728785466337,1.68816386,62883.0,62871.0,0.01]
[1728785466338,0.659053,62872.0,62871.0,0.003731]
[1728785466569,1.30786503,62872.0,62871.0,0.003731]
[1728785466787,0.87772903,62872.0,62871.0,0.003731]
[1728785467249,0.87772903,62872.0,62852.0,0.2378819]
[1728785467250,0.259086,62859.0,62858.0,5.1e-05]
[1728785467471,0.6,62859.0,62858.0,5.1e-05]
[1728785467703,0.759086,62859.0,62858.0,5.1e-05]
[1728785468436,1.259086,62859.0,62858.0,5.1e-05]
[1728785468678,0.5,62859.0,62858.0,0.25982228]
[1728785468902,0.5,62859.0,62858.0,0.34558416]
[1728785469122,0.5,62859.0,62858.0,0.35355665]
[1728785469569,0.5,62859.0,62858.0,0.19446845]
[1728785469790,0.508,62859.0,62858.0,0.34558416]
[1728785470024,0.508,62859.0,62858.0,0.35355663]
[1728785470245,0.508,62859.0,62858.0,0.40814847]
[1728785470454,0.5,62859.0,62858.0,0.44001847]
[1728785470660,0.5,62859.0,62858.0,0.47498277]
[1728785471573,0.501,62859.0,62858.0,0.47498277]
[1728785472596,0.401,62859.0,62858.0,0.46501847]
[1728785472819,0.4,62859.0,62858.0,0.46501847]
[1728785473043,0.401,62859.0,62858.0,0.46601847]
[1728785473713,0.5,62859.0,62858.0,0.62624248]
[1728785473925,0.3,62859.0,62858.0,0.54734248]
[1728785474134,0.301,62859.0,62858.0,0.54834248]
[1728785474555,0.1,62881.0,62874.0,0.318096]
[1728785474768,0.2378819,62875.0,62874.0,0.477144]
[1728785474992,0.01552515,62880.0,62876.0,0.14750141]
[1728785475229,0.02491732,62880.0,62879.0,0.159035]
[1728785475439,0.5,62890.0,62879.0,0.32305263]
[1728785475681,0.5,62880.0,62879.0,0.477106]
[1728785475955,0.3429413,62888.0,62881.0,0.14300159]
[1728785476171,0.01463999,62887.0,62883.0,0.159024]
[1728785476598,0.01463999,62887.0,62882.0,0.159027]
[1728785476813,0.01463999,62887.0,62883.0,0.16400513]
[1728785477032,0.13955458,62887.0,62883.0,0.159024]
[1728785477455,0.13955458,62887.0,62884.0,0.01539638]
[1728785477671,0.13955458,62887.0,62884.0,0.01041525]
[1728785477895,0.11463999,62887.0,62884.0,0.01041525]
[1728785478322,0.11463999,62887.0,62885.0,0.00498113]
[1728785478588,0.13955508,62887.0,62884.0,0.01041525]
[1728785478814,0.11463999,62887.0,62885.0,0.00498112]
[1728785479035,0.27365499,62887.0,62886.0,0.00498112]
[1728785479468,0.28165499,62887.0,62886.0,0.00498112]
[1728785479922,0.27365499,62887.0,62886.0,0.00498112]
[1728785480136,0.28065499,62887.0,62886.0,0.00498112]
[1728785480572,0.27365499,62887.0,62886.0,0.00498112]
[1728785480781,0.29857022,62887.0,62886.0,0.00498112]
[1728785481015,0.40447022,62887.0,62886.0,0.00498112]
[1728785481232,0.759028,62882.0,62881.0,0.000821]
[1728785481478,0.7737312,62882.0,62881.0,0.000821]
[1728785481694,0.7737312,62882.0,62881.0,0.00580315]
[1728785482806,1.08240081,62882.0,62881.0,0.000821]
[1728785483463,0.9250311,62882.0,62881.0,0.000821]
[1728785483949,0.9210311,62882.0,62881.0,0.000821]
[1728785485249,0.9350311,62882.0,62881.0,0.000821]
[1728785486343,0.9260311,62882.0,62881.0,0.000821]
[1728785486800,0.9400311,62882.0,62881.0,0.000821]
[1728785487018,0.8896312,62882.0,62881.0,0.000821]
[1728785487251,0.8756312,62882.0,62881.0,0.000821]
[1728785487692,0.8706312,62882.0,62881.0,0.000821]
[1728785488527,0.8846312,62882.0,62881.0,0.000821]
[1728785488782,1.04600091,62882.0,62881.0,0.000821]
[1728785488989,0.8706312,62882.0,62881.0,0.000821]
[1728785489417,0.8846312,62882.0,62881.0,0.00580379]
[1728785490078,0.8706312,62882.0,62881.0,0.00580379]
[1728785490306,0.3846312,62882.0,62881.0,0.00580379]
[1728785490529,0.8846312,62882.0,62881.0,0.00580379]
[1728785490940,0.90123064,62882.0,62881.0,0.00580379]
[1728785491629,1.04860035,62882.0,62881.0,0.00580379]
[1728785491843,1.04860035,62882.0,62881.0,0.000821]
[1728785491844,1.06260035,62882.0,62881.0,0.000821]
[1728785492050,1.06260035,62882.0,62881.0,0.00580363]
[1728785492264,1.06260035,62882.0,62881.0,0.000821]
[1728785492681,1.06260035,62882.0,62881.0,0.00580361]
[1728785493505,1.06260035,62882.0,62881.0,0.000821]
[1728785493924,1.48225835,62882.0,62881.0,0.000821]
[1728785494128,1.33428335,62882.0,62881.0,0.000821]
[1728785494554,1.32028335,62882.0,62881.0,0.000821]
[1728785494970,0.90123064,62882.0,62881.0,0.000821]
[1728785495406,0.88723064,62882.0,62881.0,0.000821]
[1728785495617,0.259058,62870.0,62869.0,0.2346915]
[1728785495836,0.27559502,62870.0,62869.0,0.25859529]
[1728785496049,0.27559502,62870.0,62869.0,0.26824112]
[1728785496256,0.3005167,62870.0,62869.0,0.02358445]
[1728785496889,0.3005167,62870.0,62869.0,0.01295472]
[1728785497086,0.3005167,62870.0,62869.0,0.02358445]
[1728785497294,0.3005167,62870.0,62869.0,0.00498258]
[1728785497499,0.3005167,62870.0,62869.0,0.01295473]
[1728785497730,0.3005167,62870.0,62869.0,0.00498258]
[1728785497920,0.3115167,62870.0,62869.0,0.00498258]
[1728785498347,0.8115167,62870.0,62869.0,0.00498258]
[1728785501304,0.8005167,62870.0,62869.0,0.00498258]
[1728785501535,0.159078,62862.0,62861.0,0.2378819]
[1728785501780,0.159078,62862.0,62861.0,0.26151464]
[1728785502006,0.159078,62862.0,62861.0,0.02363274]
[1728785503082,0.159076,62863.0,62861.0,0.02363274]
[1728785503291,0.159076,62863.0,62862.0,0.00498291]
[1728785503713,0.159076,62863.0,62862.0,0.01565737]
[1728785503923,0.01742262,62864.0,62862.0,0.01565737]
[1728785504174,0.17649762,62864.0,62863.0,0.00498291]
[1728785504625,0.17649762,62864.0,62863.0,0.01565144]
[1728785504837,0.17649762,62864.0,62863.0,0.01565149]
[1728785506403,0.17649762,62864.0,62863.0,0.00498296]
[1728785506628,0.17649762,62864.0,62863.0,0.01565149]
[1728785506868,0.67649762,62864.0,62863.0,0.00498296]
[1728785508431,0.67649762,62864.0,62861.0,0.000821]
[1728785508677,0.67649662,62864.0,62863.0,0.00498295]
[1728785508909,0.67649662,62864.0,62863.0,0.00598295]
[1728785509344,0.67649662,62864.0,62863.0,0.00498295]
[1728785510257,0.67649662,62864.0,62863.0,0.01066853]
[1728785510532,0.67649662,62864.0,62863.0,0.00498293]
[1728785510746,0.68149662,62864.0,62863.0,0.00498293]
[1728785510970,0.68149662,62864.0,62863.0,0.01565146]
[1728785511200,0.67649662,62864.0,62863.0,0.00498293]
[1728785511441,0.67649662,62864.0,62863.0,0.01565146]
[1728785511650,0.68149662,62864.0,62863.0,0.00498293]
[1728785512081,0.68149662,62864.0,62863.0,0.01565146]
[1728785512301,0.52242262,62864.0,62863.0,0.00498274]
[1728785512524,0.52242262,62864.0,62863.0,0.01562715]
[1728785513197,0.52242262,62864.0,62863.0,0.01064441]
[1728785513411,0.68149562,62864.0,62863.0,0.01064441]
[1728785513616,0.52242262,62864.0,62861.0,0.159901]
[1728785513853,0.52242262,62864.0,62862.0,0.00498273]
[1728785514100,0.52242262,62864.0,62862.0,0.01065034]
[1728785514612,0.51742262,62864.0,62862.0,0.01065034]
[1728785514821,0.52242262,62864.0,62862.0,0.01065034]
[1728785515230,0.51742262,62864.0,62862.0,0.01065034]
[1728785515691,0.52242262,62864.0,62862.0,0.01065034]
[1728785516172,0.52242262,62864.0,62863.0,0.000821]
[1728785516876,0.02242262,62864.0,62863.0,0.01146541]
[1728785517340,0.01742262,62864.0,62863.0,0.01146541]
[1728785517784,0.02242262,62864.0,62863.0,0.01146541]
[1728785518260,0.01742262,62864.0,62863.0,0.01146541]
[1728785518717,0.005,62864.0,62863.0,0.17054141]
[1728785518940,0.005,62864.0,62863.0,0.17552387]
[1728785519173,0.1,62869.0,62866.0,0.159068]
[1728785519400,0.01679004,62868.0,62866.0,0.16654748]
[1728785519631,0.01679004,62868.0,62867.0,0.00801256]
[1728785520295,0.259056,62871.0,62867.0,0.00801256]
[1728785520523,0.17565927,62870.0,62867.0,0.00801256]
[1728785521138,0.01660027,62870.0,62867.0,0.00801256]
[1728785521273,0.001,62868.0,62867.0,0.16707756]
[1728785521479,0.001,62868.0,62867.0,0.26803185]
[1728785521682,0.1,62871.0,62867.0,0.26803185]
[1728785521683,0.1,62871.0,62869.0,0.15906]
[1728785521886,0.11647378,62871.0,62870.0,0.32560548]
[1728785522117,0.11647378,62871.0,62870.0,0.17454818]
[1728785522331,0.01659944,62874.0,62870.0,0.17454818]
[1728785522527,0.01622078,62873.0,62872.0,0.159053]
[1728785522745,0.1,62876.0,62874.0,0.159046]
[1728785522945,0.01584133,62875.0,62873.0,0.159049]
[1728785523568,0.01584133,62875.0,62871.0,0.318109]
[1728785523728,0.01584133,62875.0,62874.0,0.16654748]
[1728785524350,0.01584133,62875.0,62874.0,0.32559548]
[1728785524784,0.11514144,62882.0,62877.0,0.159039]
[1728785524989,0.01527222,62881.0,62880.0,0.16654748]
[1728785525606,0.01527222,62881.0,62880.0,0.39055107]
[1728785525856,0.01527222,62881.0,62880.0,0.16654748]
[1728785526034,0.01527222,62881.0,62880.0,0.32558048]
[1728785526253,0.001642,62882.0,62881.0,0.15903]
[1728785526877,0.011642,62882.0,62881.0,0.15903]
[1728785527299,0.001642,62882.0,62881.0,0.15903]
[1728785527707,0.004642,62882.0,62881.0,0.15903]
[1728785529927,0.004642,62882.0,62881.0,0.25590185]
[1728785530352,0.004642,62882.0,62881.0,0.28777185]
[1728785531409,0.001642,62882.0,62881.0,0.28777185]
[1728785531638,0.001642,62882.0,62881.0,0.55565375]
[1728785531854,0.001642,62882.0,62881.0,0.31977185]
[1728785532068,0.001642,62882.0,62881.0,0.40145236]
[1728785532929,0.001642,62888.0,62887.0,0.220885]
[1728785533147,0.001642,62888.0,62887.0,0.55638964]
[1728785533276,0.001642,62888.0,62887.0,0.39241272]
[1728785533483,0.001642,62888.0,62887.0,0.5589602]
[1728785533710,0.001642,62888.0,62887.0,0.79688421]
[1728785533935,0.001642,62888.0,62887.0,0.86717511]
[1728785534137,0.002642,62888.0,62887.0,0.86917511]
[1728785534562,0.002642,62888.0,62887.0,0.87681902]
[1728785534770,0.001642,62888.0,62887.0,0.87481902]
[1728785534980,0.001642,62888.0,62887.0,0.86983878]
[1728785535192,0.001642,62888.0,62887.0,0.87481902]
[1728785535391,0.001642,62888.0,62887.0,0.86983878]
[1728785535596,0.001642,62888.0,62887.0,0.87281902]
[1728785535795,0.001642,62888.0,62887.0,0.86983878]
[1728785536007,0.002642,62888.0,62887.0,0.88381902]
[1728785536425,0.001642,62888.0,62887.0,0.86983878]
[1728785536629,0.001642,62888.0,62887.0,0.87481902]
[1728785536835,0.002642,62888.0,62887.0,0.88381902]
[1728785537254,0.002642,62888.0,62887.0,0.87883878]
[1728785537466,0.2378819,62908.0,62907.0,0.158964]
[1728785537677,0.2378819,62908.0,62907.0,0.40549758]
[1728785537914,0.0934,62909.0,62907.0,0.40549758]
[1728785537915,0.0934,62909.0,62907.0,0.25406433]
[1728785538112,0.0934,62909.0,62907.0,0.25782378]
[1728785538732,0.0934,62909.0,62908.0,0.158962]
[1728785538939,0.0934,62909.0,62908.0,0.17023414]
[1728785539208,0.0934,62909.0,62908.0,0.18711989]
[1728785539590,0.1,62912.0,62908.0,0.17023414]
[1728785539826,0.1,62912.0,62911.0,0.32550148]
[1728785540032,0.12409944,62915.0,62912.0,0.158951]
[1728785540460,0.12409944,62915.0,62913.0,0.01124253]
[1728785540881,0.12409944,62915.0,62911.0,0.16654748]
[1728785540882,0.02409944,62915.0,62912.0,0.354773]
[1728785541111,0.02409944,62915.0,62914.0,0.158947]
[1728785541112,0.0075,62915.0,62914.0,0.158947]
[1728785541333,0.0075,62915.0,62914.0,0.17015365]
[1728785541760,0.0075,62915.0,62914.0,0.24685365]
[1728785541975,0.0075,62915.0,62914.0,0.20402365]
[1728785542188,0.0075,62915.0,62914.0,0.33015816]
[1728785542416,0.0075,62915.0,62914.0,0.33515816]
[1728785543052,0.0075,62915.0,62914.0,0.35815816]
[1728785544116,0.0085,62915.0,62914.0,0.36615816]
[1728785544538,0.0075,62915.0,62914.0,0.35815816]
[1728785545859,0.0085,62915.0,62914.0,0.36615816]
[1728785546918,0.0075,62915.0,62914.0,0.35815816]
[1728785547332,0.0075,62915.0,62914.0,0.36115816]
[1728785549425,0.0075,62915.0,62914.0,0.35815816]
[1728785549791,0.0075,62915.0,62914.0,0.36115816]
[1728785551034,0.009138,62915.0,62914.0,0.36115816]
[1728785551234,0.009138,62915.0,62914.0,0.35915816]
[1728785551448,0.265582,62915.0,62914.0,0.01420665]
[1728785551669,0.265582,62915.0,62914.0,0.003]
[1728785551670,0.3914819,62915.0,62914.0,0.003]
[1728785551898,0.341082,62915.0,62914.0,0.003]
[1728785552528,0.158963,62908.0,62904.0,0.005]
[1728785552744,0.256463,62908.0,62907.0,0.2378819]
[1728785552952,0.158965,62907.0,62902.0,0.158976]
[1728785553371,0.0975,62908.0,62903.0,0.25027592]
[1728785553574,0.256462,62908.0,62904.0,0.004]
[1728785553983,0.0975,62908.0,62906.0,0.005]
[1728785554185,0.256464,62908.0,62904.0,0.005]
[1728785554398,0.256464,62908.0,62904.0,0.17133325]
[1728785554595,0.256462,62908.0,62904.0,0.16633325]
[1728785554796,0.0975,62908.0,62904.0,0.16633325]
[1728785554993,0.0975,62908.0,62904.0,0.32530325]
[1728785555217,0.256463,62908.0,62904.0,0.16633325]
[1728785555931,0.0975,62908.0,62907.0,0.005]
[1728785556134,0.0975,62908.0,62906.0,0.004]
[1728785556352,0.0975,62908.0,62907.0,0.005]
[1728785557609,0.256462,62908.0,62907.0,0.004]
[1728785557806,0.256462,62908.0,62907.0,0.009]
[1728785558005,0.0975,62908.0,62907.0,0.004]
[1728785559180,0.0975,62908.0,62907.0,0.4008459]
[1728785559430,0.084638,62915.0,62910.0,0.005]
[1728785559629,0.182138,62915.0,62913.0,0.16629763]
[1728785559852,0.182138,62915.0,62914.0,0.00497852]
[1728785560298,0.182138,62915.0,62913.0,0.16629763]
[1728785560500,0.182138,62915.0,62914.0,0.00497855]
[1728785560627,0.185138,62915.0,62914.0,0.00497855]
[1728785561677,0.185138,62915.0,62914.0,0.16392555]
[1728785561932,0.185138,62915.0,62914.0,0.00497855]
[1728785562333,0.185138,62915.0,62914.0,0.16392555]
[1728785562734,0.106638,62915.0,62914.0,0.16392555]
[1728785563271,0.185138,62915.0,62914.0,0.00497855]
[1728785563481,0.182138,62915.0,62909.0,0.16629763]
[1728785563688,0.158949,62913.0,62909.0,0.32525563]
[1728785563918,0.185138,62915.0,62910.0,0.00997888]
[1728785564130,0.344084,62915.0,62911.0,0.16393288]
[1728785564343,0.344084,62915.0,62912.0,0.00497888]
[1728785564344,0.341084,62915.0,62912.0,0.00497888]
[1728785564562,0.341084,62915.0,62913.0,0.00497888]
[1728785564769,0.344084,62915.0,62911.0,0.158954]
[1728785564972,0.344084,62915.0,62912.0,0.00497888]
[1728785565202,0.158947,62914.0,62913.0,0.00497888]
[1728785566467,0.158947,62914.0,62910.0,0.163956]
[1728785566671,0.158947,62914.0,62911.0,0.00497895]
[1728785566844,0.158947,62914.0,62912.0,0.00497895]
[1728785567080,0.002,62914.0,62910.0,0.005]
[1728785567294,0.002,62914.0,62911.0,0.00497894]
[1728785567500,0.341083,62915.0,62912.0,0.00497894]
[1728785567705,0.002,62914.0,62913.0,0.00497894]
[1728785569633,0.341083,62915.0,62913.0,0.00497894]
[1728785569851,0.002,62914.0,62910.0,0.163955]
[1728785570026,0.002,62914.0,62911.0,0.00497883]
[1728785570254,0.002,62914.0,62912.0,0.00497883]
[1728785570482,0.341083,62915.0,62910.0,0.163955]
[1728785570693,0.002,62914.0,62911.0,0.16393283]
[1728785570899,0.002,62914.0,62912.0,0.00497883]
[1728785571118,0.002,62914.0,62911.0,0.158954]
[1728785571334,0.341083,62915.0,62912.0,0.16629763]
[1728785571335,0.182138,62915.0,62912.0,0.16629763]
[1728785571562,0.182138,62915.0,62914.0,0.158947]
[1728785571766,0.002,62914.0,62912.0,0.32524863]
[1728785571992,0.01859944,62914.0,62913.0,0.158949]
[1728785572464,0.01859944,62914.0,62913.0,0.00497875]
[1728785572697,0.01859944,62914.0,62912.0,0.16629763]
[1728785572933,0.01859944,62914.0,62913.0,0.00497869]
[1728785573408,0.01859944,62914.0,62913.0,0.158949]
[1728785573614,0.01859944,62914.0,62912.0,0.16629763]
[1728785574029,0.01659944,62914.0,62912.0,0.32524663]
[1728785574271,0.01659944,62914.0,62913.0,0.0049787]
[1728785574507,0.01659944,62914.0,62912.0,0.32524663]
[1728785575200,0.01659944,62914.0,62912.0,0.16629763]
[1728785575201,0.01859944,62914.0,62912.0,0.16629763]
[1728785575704,0.01859944,62914.0,62910.0,0.163955]
[1728785575974,0.01859944,62914.0,62911.0,0.00497877]
[1728785576209,0.01859944,62914.0,62910.0,0.33025263]
[1728785576441,0.01859944,62914.0,62911.0,0.16393173]
[1728785576668,0.01859944,62914.0,62912.0,0.00497873]
[1728785576908,0.01659944,62914.0,62911.0,0.158953]
[1728785577392,0.01859944,62914.0,62911.0,0.158953]
[1728785577615,0.01859944,62914.0,62910.0,0.33025363]
[1728785577804,0.01659944,62914.0,62910.0,0.32525363]
[1728785578072,0.01859944,62914.0,62910.0,0.33025363]
[1728785578565,0.01659944,62914.0,62910.0,0.33025363]
[1728785579020,0.01659944,62914.0,62911.0,0.158952]
[1728785579021,0.01859944,62914.0,62911.0,0.158952]
[1728785579518,0.01859944,62914.0,62912.0,0.15895]
[1728785580156,0.01659944,62914.0,62912.0,0.15895]
[1728785580361,0.01859944,62914.0,62910.0,0.32525263]
[1728785580622,0.01859944,62914.0,62910.0,0.33025263]
[1728785580832,0.01859944,62914.0,62911.0,0.158953]
[1728785580833,0.01659944,62914.0,62911.0,0.158953]
[1728785581247,0.01859944,62914.0,62911.0,0.158953]
[1728785581662,0.01659944,62914.0,62911.0,0.158953]
[1728785581901,0.01659944,62914.0,62913.0,0.158949]
[1728785581902,0.01859944,62914.0,62913.0,0.158949]
[1728785582112,0.01859944,62914.0,62911.0,0.158953]
[1728785582992,0.01859944,62914.0,62911.0,0.12039775]
[1728785583232,0.01659944,62914.0,62913.0,0.158949]
[1728785583479,0.01859944,62914.0,62913.0,0.158949]
[1728785583704,0.01859944,62914.0,62913.0,0.16392748]
[1728785583934,0.01659944,62914.0,62913.0,0.16392748]
[1728785584165,0.01659944,62914.0,62913.0,0.31849132]
[1728785584437,0.01959944,62914.0,62913.0,0.32049132]
[1728785584957,0.01959944,62914.0,62913.0,0.3184912]
[1728785585183,0.01659944,62914.0,62913.0,0.3184912]
[1728785586041,0.01823744,62914.0,62913.0,0.3184912]
[1728785586649,0.02123744,62914.0,62913.0,0.3184912]
[1728785587835,0.02123744,62914.0,62913.0,0.3204912]
[1728785588044,0.02123744,62914.0,62913.0,0.31849113]
[1728785588457,0.02123744,62914.0,62913.0,0.43043751]
[1728785589697,0.02123744,62914.0,62913.0,0.4384023]
[1728785589899,0.02123744,62914.0,62913.0,0.4404023]
[1728785590116,0.02123744,62914.0,62913.0,0.4702723]
[1728785590496,0.02123744,62914.0,62913.0,0.46230751]
[1728785590701,0.01823744,62914.0,62913.0,0.46430751]
[1728785590924,0.01823744,62914.0,62913.0,0.57425389]
[1728785591076,0.02123744,62914.0,62913.0,0.57425389]
[1728785591278,0.02123744,62914.0,62913.0,0.59925389]
[1728785591504,0.01823744,62914.0,62913.0,0.48530751]
[1728785591905,0.01823744,62914.0,62913.0,0.48930751]
[1728785592660,0.01823744,62914.0,62913.0,0.37736113]
[1728785592856,0.01823744,62914.0,62913.0,0.48930751]
[1728785595320,0.01823744,62914.0,62913.0,0.48432922]
[1728785595545,0.01823744,62914.0,62913.0,0.48930739]
[1728785598055,0.01823744,62914.0,62913.0,0.49130739]
[1728785598319,0.01823744,62914.0,62913.0,0.60125377]
[1728785598522,0.001638,62914.0,62913.0,0.60325377]
[1728785599209,0.001638,62914.0,62913.0,0.61121819]
[1728785599655,0.001638,62914.0,62913.0,0.60921819]
[1728785600064,0.001638,62914.0,62913.0,0.60325377]
[1728785600281,0.001638,62914.0,62913.0,0.61121835]
[1728785600919,0.001638,62914.0,62913.0,0.60921835]
[1728785601088,0.001638,62914.0,62913.0,0.61121835]
[1728785603531,0.001638,62914.0,62913.0,0.61853811]
[1728785603728,0.001638,62914.0,62913.0,0.61653811]
[1728785603958,0.001638,62914.0,62913.0,0.60857353]
[1728785604409,0.001638,62914.0,62913.0,0.61653806]
[1728785605095,0.001638,62914.0,62913.0,0.6092183]
[1728785605337,0.001638,62914.0,62913.0,0.49727185]
[1728785605570,0.001638,62914.0,62913.0,0.48930739]
[1728785606093,0.001638,62914.0,62913.0,0.48930716]
[1728785609666,0.001638,62914.0,62913.0,0.48930717]
[1728785611285,0.001638,62914.0,62913.0,0.49130717]
[1728785611516,0.001638,62914.0,62913.0,0.4992719]
[1728785611754,0.001638,62914.0,62913.0,0.49130717]
[1728785612217,0.001638,62914.0,62913.0,0.49927192]
[1728785613883,0.01826669,62914.0,62913.0,0.49927192]
[1728785614876,0.01826669,62914.0,62913.0,0.6112183]
[1728785617203,0.01826669,62914.0,62913.0,0.60624038]
[1728785617401,0.01826669,62914.0,62913.0,0.61121837]
[1728785617661,0.01826669,62914.0,62913.0,0.61121828]
[1728785617829,0.01826669,62914.0,62913.0,0.62315693]
[1728785618204,0.01826669,62914.0,62913.0,0.61021425]
[1728785618380,0.01826669,62914.0,62913.0,0.62315677]
[1728785620235,0.01826669,62914.0,62913.0,0.69467348]
[1728785620346,0.01826669,62914.0,62913.0,0.62315677]
[1728785621624,0.01826669,62914.0,62913.0,0.66884835]
[1728785622469,0.01826669,62914.0,62913.0,0.55690197]
[1728785622691,0.01826669,62914.0,62913.0,0.50921039]
[1728785624802,0.01826669,62914.0,62913.0,0.69270572]
[1728785625012,0.01826669,62914.0,62913.0,0.69270231]
[1728785625225,0.01826669,62914.0,62913.0,0.87079699]
[1728785625418,0.01826669,62914.0,62913.0,0.79924804]
[1728785626215,0.01826669,62914.0,62913.0,0.87080969]
[1728785626436,0.01826669,62914.0,62913.0,0.79924804]
[1728785627943,0.01826669,62914.0,62913.0,0.89464664]
[1728785628593,0.01826669,62914.0,62913.0,0.88271056]
[1728785628797,0.01826669,62914.0,62913.0,0.89464685]
[1728785629224,0.01826669,62914.0,62913.0,0.79924825]
[1728785629427,0.09806669,62914.0,62913.0,0.66881227]
[1728785629645,0.09806669,62914.0,62913.0,0.57335549]
[1728785629851,0.09806669,62914.0,62913.0,0.75689643]